[Event "Titled Tuesday Blitz February 22 Early 2022"]
[White "Buscar, Michael"]
[Black "Potapova, Margarita"]
[WhiteFideId "2603616"]
[BlackFideId "14126869"]
[WhiteElo "2010"]
[BlackElo "2209"]
[Result "1-0"]
[Round "04"]
[TimeControl "180+1"]
[Date "2022.02.22"]
[WhiteClock "0:00:17"]
[BlackClock "0:00:08"]

1. c4 {[%clk 0:03:00]}  Nf6 {[%clk 0:02:59]} 2. g3 {[%clk 0:02:58]}  g6 {[%clk 0:02:58]} 3. Bg2 {[%clk 0:02:58]}  Bg7 {[%clk 0:02:59]} 4. e3 {[%clk 0:02:55]}  O-O {[%clk 0:03:00]} 5. Ne2 {[%clk 0:02:54]}  c6 {[%clk 0:03:00]} 6. O-O {[%clk 0:02:54]}  d5 {[%clk 0:03:01]} 7. cxd5 {[%clk 0:02:53]}  cxd5 {[%clk 0:03:01]} 8. d4 {[%clk 0:02:52]}  Nc6 {[%clk 0:03:01]} 9. Nbc3 {[%clk 0:02:47]}  Bf5 {[%clk 0:03:01]} 10. a3 {[%clk 0:02:47]}  Rc8 {[%clk 0:02:59]} 11. Bd2 {[%clk 0:02:45]}  a6 {[%clk 0:02:58]} 12. f3 {[%clk 0:02:40]}  e5 {[%clk 0:02:55]} 13. Be1 {[%clk 0:02:38]}  Re8 {[%clk 0:02:44]} 14. Bf2 {[%clk 0:02:33]}  exd4 {[%clk 0:02:34]} 15. exd4 {[%clk 0:02:25]}  Na5 {[%clk 0:02:34]} 16. Rc1 {[%clk 0:02:15]}  Nc4 {[%clk 0:02:33]} 17. Qb3 {[%clk 0:02:01]}  Nd2 {[%clk 0:02:30]} 18. Qxb7 {[%clk 0:02:01]}  Nxf1 {[%clk 0:02:30]} 19. Bxf1 {[%clk 0:01:57]}  Bh6 {[%clk 0:02:28]} 20. Re1 {[%clk 0:01:38]}  Qd6 {[%clk 0:02:25]} 21. Na4 {[%clk 0:01:25]}  Rb8 {[%clk 0:01:44]} 22. Qa7 {[%clk 0:01:23]}  Rec8 {[%clk 0:01:42]} 23. Nec3 {[%clk 0:01:18]}  Ra8 {[%clk 0:01:22]} 24. Qb6 {[%clk 0:01:13]}  Rd8 {[%clk 0:01:19]} 25. g4 {[%clk 0:00:49]}  Be6 {[%clk 0:01:17]} 26. Qxd6 {[%clk 0:00:45]}  Rxd6 {[%clk 0:01:17]} 27. Bg3 {[%clk 0:00:45]}  Rdd8 {[%clk 0:01:14]} 28. Nc5 {[%clk 0:00:42]}  a5 {[%clk 0:01:08]} 29. Nxe6 {[%clk 0:00:39]}  fxe6 {[%clk 0:01:08]} 30. Rxe6 {[%clk 0:00:39]}  Kf7 {[%clk 0:01:08]} 31. Rb6 {[%clk 0:00:37]}  Be3+ {[%clk 0:01:07]} 32. Bf2 {[%clk 0:00:37]}  Bf4 {[%clk 0:01:01]} 33. Na4 {[%clk 0:00:32]}  Rdb8 {[%clk 0:00:54]} 34. Rc6 {[%clk 0:00:19]}  Rc8 {[%clk 0:00:51]} 35. Rb6 {[%clk 0:00:20]}  Nd7 {[%clk 0:00:40]} 36. Rb7 {[%clk 0:00:19]}  Rc7 {[%clk 0:00:40]} 37. Rb5 {[%clk 0:00:18]}  Nf6 {[%clk 0:00:37]} 38. Nc5 {[%clk 0:00:17]}  Ne8 {[%clk 0:00:24]} 39. Nd3 {[%clk 0:00:16]}  Bd2 {[%clk 0:00:18]} 40. Ne5+ {[%clk 0:00:16]}  Kg7 {[%clk 0:00:18]} 41. Bg3 {[%clk 0:00:16]}  Be3+ {[%clk 0:00:16]} 42. Bf2 {[%clk 0:00:16]}  Bc1 {[%clk 0:00:15]} 43. b4 {[%clk 0:00:16]}  a4 {[%clk 0:00:15]} 44. Rxd5 {[%clk 0:00:14]}  Bxa3 {[%clk 0:00:14]} 45. b5 {[%clk 0:00:14]}  Bc1 {[%clk 0:00:09]} 46. Rc5 {[%clk 0:00:13]}  Rxc5 {[%clk 0:00:08]} 47. dxc5 {[%clk 0:00:13]}  a3 {[%clk 0:00:07]} 48. Bc4 {[%clk 0:00:13]}  Ra4 {[%clk 0:00:04]} 49. Ba2 {[%clk 0:00:11]}  Rb4 {[%clk 0:00:05]} 50. c6 {[%clk 0:00:10]}  Nc7 {[%clk 0:00:04]} 51. Nd3 {[%clk 0:00:10]}  Rxb5 {[%clk 0:00:03]} 52. Nxc1 {[%clk 0:00:10]}  Kf8 {[%clk 0:00:03]} 53. Bd4 {[%clk 0:00:11]}  Ke8 {[%clk 0:00:03]} 54. Be3 {[%clk 0:00:11]}  Re5 {[%clk 0:00:03]} 55. Kf2 {[%clk 0:00:10]}  Rb5 {[%clk 0:00:03]} 56. Bc4 {[%clk 0:00:10]}  Rb2+ {[%clk 0:00:03]} 57. Kg3 {[%clk 0:00:09]}  Rc2 {[%clk 0:00:04]} 58. Bb3 {[%clk 0:00:09]}  Rc3 {[%clk 0:00:04]} 59. Kf2 {[%clk 0:00:09]}  Rxc6 {[%clk 0:00:02]} 60. Ba2 {[%clk 0:00:08]}  Rc2+ {[%clk 0:00:02]} 61. Kg3 {[%clk 0:00:09]}  Ke7 {[%clk 0:00:02]} 62. Bb3 {[%clk 0:00:09]}  Rc3 {[%clk 0:00:02]} 63. Bd4 {[%clk 0:00:09]}  Rd3 {[%clk 0:00:02]} 64. Bc5+ {[%clk 0:00:09]}  Rd6 {[%clk 0:00:02]} 65. Bxa3 {[%clk 0:00:09]}  Kd7 {[%clk 0:00:02]} 66. Bxd6 {[%clk 0:00:09]}  Kxd6 {[%clk 0:00:03]} 67. Ne2 {[%clk 0:00:10]}  Ke7 {[%clk 0:00:04]} 68. Nf4 {[%clk 0:00:10]}  Ne8 {[%clk 0:00:04]} 69. Nd5+ {[%clk 0:00:11]}  Kf8 {[%clk 0:00:05]} 70. Bc2 {[%clk 0:00:11]}  Nd6 {[%clk 0:00:05]} 71. h4 {[%clk 0:00:12]}  Nc4 {[%clk 0:00:05]} 72. Bd3 {[%clk 0:00:12]}  Nb2 {[%clk 0:00:05]} 73. Be4 {[%clk 0:00:11]}  Na4 {[%clk 0:00:05]} 74. Nf4 {[%clk 0:00:11]}  Kg7 {[%clk 0:00:05]} 75. h5 {[%clk 0:00:11]}  Nc5 {[%clk 0:00:06]} 76. hxg6 {[%clk 0:00:12]}  hxg6 {[%clk 0:00:05]} 77. Bxg6 {[%clk 0:00:12]}  Nb3 {[%clk 0:00:05]} 78. Bc2 {[%clk 0:00:12]}  Nd4 {[%clk 0:00:05]} 79. Bd3 {[%clk 0:00:13]}  Nc6 {[%clk 0:00:06]} 80. Ne6+ {[%clk 0:00:13]}  Kf6 {[%clk 0:00:05]} 81. Nc5 {[%clk 0:00:14]}  Ne5 {[%clk 0:00:06]} 82. Be4 {[%clk 0:00:13]}  Nf7 {[%clk 0:00:06]} 83. Nd3 {[%clk 0:00:14]}  Kg7 {[%clk 0:00:06]} 84. Kf4 {[%clk 0:00:14]}  Nd6 {[%clk 0:00:06]} 85. Ne5 {[%clk 0:00:14]}  Nb5 {[%clk 0:00:06]} 86. g5 {[%clk 0:00:15]}  Nc7 {[%clk 0:00:07]} 87. Ng4 {[%clk 0:00:15]}  Ne6+ {[%clk 0:00:07]} 88. Kf5 {[%clk 0:00:15]}  Nd4+ {[%clk 0:00:08]} 89. Ke5 {[%clk 0:00:15]}  Nb5 {[%clk 0:00:07]} 90. f4 {[%clk 0:00:15]}  Nc7 {[%clk 0:00:08]} 91. f5 {[%clk 0:00:15]}  Ne8 {[%clk 0:00:08]} 92. f6+ {[%clk 0:00:16]}  Kf8 {[%clk 0:00:09]} 93. g6 {[%clk 0:00:16]}  Nc7 {[%clk 0:00:09]} 94. Kf5 {[%clk 0:00:16]}  Nb5 {[%clk 0:00:09]} 95. g7+ {[%clk 0:00:16]}  Kg8 {[%clk 0:00:08]} 96. Bd5+ {[%clk 0:00:17]}  Kh7 {[%clk 0:00:08]} 97. g8=Q# {[%clk 0:00:17]} 1-0


[Site "https://www.chess.com"]

[Event "Titled Tuesday Blitz February 22 Early 2022"]
[White "Chojnacki, Slawomir"]
[Black "Komiagina, Maria"]
[WhiteFideId "1117076"]
[BlackFideId "4153987"]
[WhiteElo "2084"]
[BlackElo "1945"]
[Result "1-0"]
[Round "04"]
[TimeControl "180+1"]
[Date "2022.02.22"]
[WhiteClock "0:00:35"]
[BlackClock "0:00:01"]

1. d4 {[%clk 0:02:57]}  Nf6 {[%clk 0:02:59]} 2. Nf3 {[%clk 0:02:58]}  g6 {[%clk 0:02:58]} 3. c3 {[%clk 0:02:59]}  Bg7 {[%clk 0:02:58]} 4. Bg5 {[%clk 0:02:59]}  d6 {[%clk 0:02:56]} 5. Nbd2 {[%clk 0:03:00]}  Nbd7 {[%clk 0:02:53]} 6. e4 {[%clk 0:03:00]}  e5 {[%clk 0:02:53]} 7. dxe5 {[%clk 0:03:00]}  dxe5 {[%clk 0:02:53]} 8. Bc4 {[%clk 0:03:00]}  O-O {[%clk 0:02:51]} 9. O-O {[%clk 0:03:00]}  h6 {[%clk 0:02:50]} 10. Bh4 {[%clk 0:03:00]}  Qe7 {[%clk 0:02:49]} 11. Qe2 {[%clk 0:02:59]}  c6 {[%clk 0:02:47]} 12. a3 {[%clk 0:02:58]}  Nb6 {[%clk 0:02:44]} 13. Ba2 {[%clk 0:02:58]}  Bg4 {[%clk 0:02:43]} 14. h3 {[%clk 0:02:57]}  Be6 {[%clk 0:02:39]} 15. Bxe6 {[%clk 0:02:55]}  Qxe6 {[%clk 0:02:39]} 16. Bxf6 {[%clk 0:02:56]}  Bxf6 {[%clk 0:02:37]} 17. Rfd1 {[%clk 0:02:56]}  Bg7 {[%clk 0:02:34]} 18. a4 {[%clk 0:02:53]}  Rad8 {[%clk 0:02:24]} 19. a5 {[%clk 0:02:52]}  Nd7 {[%clk 0:02:24]} 20. Qc4 {[%clk 0:02:48]}  Qxc4 {[%clk 0:02:18]} 21. Nxc4 {[%clk 0:02:47]}  Nc5 {[%clk 0:02:16]} 22. Ncxe5 {[%clk 0:02:28]}  Nxe4 {[%clk 0:02:15]} 23. a6 {[%clk 0:02:29]}  Rxd1+ {[%clk 0:02:09]} 24. Rxd1 {[%clk 0:02:28]}  bxa6 {[%clk 0:02:09]} 25. Nxc6 {[%clk 0:02:27]}  Nc5 {[%clk 0:01:47]} 26. Rd2 {[%clk 0:02:02]}  Ra8 {[%clk 0:01:38]} 27. Nfe5 {[%clk 0:01:54]}  a5 {[%clk 0:01:29]} 28. Nd7 {[%clk 0:01:53]}  Ne4 {[%clk 0:01:22]} 29. Re2 {[%clk 0:01:47]}  Nd6 {[%clk 0:01:16]} 30. Nxa5 {[%clk 0:01:46]}  Rd8 {[%clk 0:01:13]} 31. Nc5 {[%clk 0:01:41]}  Rc8 {[%clk 0:01:05]} 32. Na4 {[%clk 0:01:32]}  Kf8 {[%clk 0:00:54]} 33. Kf1 {[%clk 0:01:25]}  Nf5 {[%clk 0:00:35]} 34. Rd2 {[%clk 0:01:19]}  Rb8 {[%clk 0:00:31]} 35. b4 {[%clk 0:01:16]}  Ne7 {[%clk 0:00:28]} 36. Rd7 {[%clk 0:01:15]}  Rc8 {[%clk 0:00:24]} 37. Rxa7 {[%clk 0:01:05]}  Nd5 {[%clk 0:00:23]} 38. Nb7 {[%clk 0:00:56]}  Bxc3 {[%clk 0:00:17]} 39. Nd6 {[%clk 0:00:53]}  Rb8 {[%clk 0:00:15]} 40. Rxf7+ {[%clk 0:00:51]}  Kg8 {[%clk 0:00:15]} 41. Nxc3 {[%clk 0:00:51]}  Nxc3 {[%clk 0:00:14]} 42. Rf4 {[%clk 0:00:48]}  Nd5 {[%clk 0:00:13]} 43. Rd4 {[%clk 0:00:45]}  Nxb4 {[%clk 0:00:12]} 44. Ne4 {[%clk 0:00:46]}  Nc6 {[%clk 0:00:11]} 45. Rd6 {[%clk 0:00:45]}  Ne5 {[%clk 0:00:10]} 46. Re6 {[%clk 0:00:45]}  Rb5 {[%clk 0:00:06]} 47. g4 {[%clk 0:00:42]}  Kf7 {[%clk 0:00:05]} 48. Rf6+ {[%clk 0:00:42]}  Kg7 {[%clk 0:00:05]} 49. Ra6 {[%clk 0:00:43]}  Nd3 {[%clk 0:00:04]} 50. Kg2 {[%clk 0:00:41]}  Nf4+ {[%clk 0:00:04]} 51. Kg3 {[%clk 0:00:40]}  g5 {[%clk 0:00:04]} 52. Ra7+ {[%clk 0:00:36]}  Kg6 {[%clk 0:00:03]} 53. Ra6+ {[%clk 0:00:35]}  Kg7 {[%clk 0:00:04]} 54. Ra2 {[%clk 0:00:35]}  Rb3+ {[%clk 0:00:03]} 55. f3 {[%clk 0:00:35]}  Re3 {[%clk 0:00:03]} 56. Nd6 {[%clk 0:00:35]}  Rd3 {[%clk 0:00:01]} 57. Nf5+ {[%clk 0:00:35]} 1-0


[Site "https://www.chess.com"]

[Event "Titled Tuesday Blitz February 22 Early 2022"]
[White "Coelho, Ramyres Santana"]
[Black "Lucas, Arthur"]
[WhiteFideId "2120690"]
[BlackFideId "26093073"]
[WhiteElo "1888"]
[BlackElo "2129"]
[Result "1-0"]
[Round "04"]
[TimeControl "180+1"]
[Date "2022.02.22"]
[WhiteClock "0:00:27"]
[BlackClock "0:00:06"]

1. e4 {[%clk 0:03:00]}  d5 {[%clk 0:02:58]} 2. exd5 {[%clk 0:02:59]}  Qxd5 {[%clk 0:02:59]} 3. Nc3 {[%clk 0:03:00]}  Qa5 {[%clk 0:02:59]} 4. Nf3 {[%clk 0:03:01]}  Nf6 {[%clk 0:03:00]} 5. Bc4 {[%clk 0:03:01]}  Nc6 {[%clk 0:02:58]} 6. O-O {[%clk 0:03:01]}  Bg4 {[%clk 0:02:58]} 7. h3 {[%clk 0:03:01]}  h5 {[%clk 0:02:57]} 8. Be2 {[%clk 0:02:57]}  O-O-O {[%clk 0:02:57]} 9. d3 {[%clk 0:02:57]}  e6 {[%clk 0:02:41]} 10. Bd2 {[%clk 0:02:57]}  Qf5 {[%clk 0:02:37]} 11. Nh2 {[%clk 0:02:40]}  Bxe2 {[%clk 0:02:32]} 12. Qxe2 {[%clk 0:02:38]}  Nd4 {[%clk 0:02:32]} 13. Qd1 {[%clk 0:02:35]}  Bd6 {[%clk 0:02:32]} 14. Nf3 {[%clk 0:02:30]}  Nxf3+ {[%clk 0:02:31]} 15. Qxf3 {[%clk 0:02:31]}  Qxf3 {[%clk 0:02:31]} 16. gxf3 {[%clk 0:02:32]}  h4 {[%clk 0:02:23]} 17. Ne4 {[%clk 0:02:32]}  Nd5 {[%clk 0:02:20]} 18. Ng5 {[%clk 0:02:30]}  Rdf8 {[%clk 0:02:16]} 19. c4 {[%clk 0:02:29]}  Ne7 {[%clk 0:02:07]} 20. b4 {[%clk 0:02:26]}  Rh5 {[%clk 0:02:06]} 21. Ne4 {[%clk 0:02:18]}  Be5 {[%clk 0:02:05]} 22. Rab1 {[%clk 0:02:16]}  b6 {[%clk 0:02:02]} 23. c5 {[%clk 0:02:13]}  f5 {[%clk 0:02:01]} 24. Ng5 {[%clk 0:02:04]}  Bc3 {[%clk 0:01:49]} 25. Nxe6 {[%clk 0:01:59]}  Rf6 {[%clk 0:01:46]} 26. Bxc3 {[%clk 0:01:58]}  Rxe6 {[%clk 0:01:46]} 27. d4 {[%clk 0:01:54]}  Nd5 {[%clk 0:01:44]} 28. Bd2 {[%clk 0:01:53]}  Re2 {[%clk 0:01:43]} 29. Rbd1 {[%clk 0:01:45]}  f4 {[%clk 0:01:38]} 30. cxb6 {[%clk 0:01:38]}  axb6 {[%clk 0:01:38]} 31. Rfe1 {[%clk 0:01:24]}  Rxe1+ {[%clk 0:01:22]} 32. Rxe1 {[%clk 0:01:22]}  Kd7 {[%clk 0:01:19]} 33. Re4 {[%clk 0:01:21]}  Rf5 {[%clk 0:01:17]} 34. a4 {[%clk 0:01:20]}  g5 {[%clk 0:01:13]} 35. Re5 {[%clk 0:01:12]}  Rxe5 {[%clk 0:01:11]} 36. dxe5 {[%clk 0:01:13]}  c6 {[%clk 0:01:03]} 37. a5 {[%clk 0:01:11]}  b5 {[%clk 0:01:00]} 38. Kf1 {[%clk 0:01:05]}  Ke6 {[%clk 0:00:56]} 39. Ke2 {[%clk 0:01:05]}  Kxe5 {[%clk 0:00:55]} 40. a6 {[%clk 0:01:05]}  Nc7 {[%clk 0:00:53]} 41. Bc3+ {[%clk 0:01:04]}  Kd5 {[%clk 0:00:52]} 42. a7 {[%clk 0:00:59]}  Ke6 {[%clk 0:00:31]} 43. Kd3 {[%clk 0:00:54]}  Na8 {[%clk 0:00:26]} 44. Kd4 {[%clk 0:00:48]}  Kd6 {[%clk 0:00:25]} 45. Ke4 {[%clk 0:00:41]}  Ke6 {[%clk 0:00:16]} 46. Be5 {[%clk 0:00:40]}  Nb6 {[%clk 0:00:15]} 47. Bc7 {[%clk 0:00:38]}  Na8 {[%clk 0:00:14]} 48. Bd8 {[%clk 0:00:38]}  c5 {[%clk 0:00:11]} 49. bxc5 {[%clk 0:00:37]}  b4 {[%clk 0:00:12]} 50. c6 {[%clk 0:00:34]}  Kd6 {[%clk 0:00:09]} 51. c7 {[%clk 0:00:33]}  b3 {[%clk 0:00:09]} 52. Kd3 {[%clk 0:00:33]}  Nb6 {[%clk 0:00:07]} 53. c8=Q {[%clk 0:00:28]}  Nxc8 {[%clk 0:00:05]} 54. a8=Q {[%clk 0:00:27]}  b2 {[%clk 0:00:06]} 55. Kc2 {[%clk 0:00:27]}  Kd7 {[%clk 0:00:06]} 56. Qd5+ {[%clk 0:00:26]}  Nd6 {[%clk 0:00:06]} 57. Kxb2 {[%clk 0:00:27]} 1-0


[Site "https://www.chess.com"]

[Event "Titled Tuesday Blitz February 22 Early 2022"]
[White "Dauner, Benedikt"]
[Black "Cherniaiev, Tykhon"]
[WhiteFideId "16225899"]
[BlackFideId "14182360"]
[WhiteElo "2230"]
[BlackElo "2289"]
[Result "0-1"]
[Round "04"]
[TimeControl "180+1"]
[Date "2022.02.22"]
[WhiteClock "0:00:13"]
[BlackClock "0:01:26"]

1. d4 {[%clk 0:03:00]}  Nf6 {[%clk 0:02:57]} 2. c4 {[%clk 0:03:00]}  e6 {[%clk 0:02:57]} 3. Nf3 {[%clk 0:02:57]}  d5 {[%clk 0:02:57]} 4. cxd5 {[%clk 0:02:53]}  exd5 {[%clk 0:02:56]} 5. Nc3 {[%clk 0:02:52]}  Bb4 {[%clk 0:02:55]} 6. Bg5 {[%clk 0:02:52]}  O-O {[%clk 0:02:54]} 7. e3 {[%clk 0:02:51]}  c5 {[%clk 0:02:53]} 8. Bd3 {[%clk 0:02:50]}  cxd4 {[%clk 0:02:53]} 9. Nxd4 {[%clk 0:02:48]}  Nc6 {[%clk 0:02:52]} 10. O-O {[%clk 0:02:48]}  Nxd4 {[%clk 0:02:52]} 11. exd4 {[%clk 0:02:48]}  Be6 {[%clk 0:02:50]} 12. Qb3 {[%clk 0:02:39]}  Be7 {[%clk 0:02:48]} 13. Rfe1 {[%clk 0:02:34]}  h6 {[%clk 0:02:47]} 14. Bf4 {[%clk 0:02:30]}  Bd6 {[%clk 0:02:40]} 15. Be5 {[%clk 0:02:19]}  Bxe5 {[%clk 0:02:39]} 16. dxe5 {[%clk 0:02:20]}  Nd7 {[%clk 0:02:39]} 17. Qb4 {[%clk 0:01:55]}  Qc7 {[%clk 0:02:33]} 18. Nb5 {[%clk 0:01:43]}  Qb6 {[%clk 0:02:32]} 19. Qd6 {[%clk 0:01:37]}  Nc5 {[%clk 0:02:23]} 20. Qxb6 {[%clk 0:01:30]}  axb6 {[%clk 0:02:24]} 21. Bf1 {[%clk 0:01:24]}  d4 {[%clk 0:02:18]} 22. Nxd4 {[%clk 0:01:21]}  Bxa2 {[%clk 0:02:17]} 23. Nb5 {[%clk 0:01:15]}  Be6 {[%clk 0:02:15]} 24. Nd6 {[%clk 0:01:15]}  Rxa1 {[%clk 0:02:15]} 25. Rxa1 {[%clk 0:01:16]}  Rd8 {[%clk 0:02:15]} 26. b4 {[%clk 0:01:15]}  Nd7 {[%clk 0:02:13]} 27. Nxb7 {[%clk 0:01:15]}  Rb8 {[%clk 0:02:13]} 28. Nd6 {[%clk 0:01:11]}  Nxe5 {[%clk 0:02:13]} 29. Ra7 {[%clk 0:01:10]}  Nc6 {[%clk 0:02:13]} 30. Rc7 {[%clk 0:01:09]}  Nxb4 {[%clk 0:02:13]} 31. h3 {[%clk 0:01:01]}  Nd5 {[%clk 0:02:12]} 32. Ra7 {[%clk 0:00:56]}  Nc3 {[%clk 0:02:07]} 33. Ra3 {[%clk 0:00:50]}  Nd5 {[%clk 0:02:04]} 34. Ra7 {[%clk 0:00:49]}  Rd8 {[%clk 0:02:03]} 35. Nb7 {[%clk 0:00:47]}  Rd7 {[%clk 0:02:02]} 36. Ra8+ {[%clk 0:00:47]}  Kh7 {[%clk 0:02:02]} 37. Nd8 {[%clk 0:00:47]}  Bf5 {[%clk 0:01:53]} 38. Rb8 {[%clk 0:00:46]}  Nc3 {[%clk 0:01:48]} 39. Bc4 {[%clk 0:00:41]}  Bg6 {[%clk 0:01:40]} 40. Kh2 {[%clk 0:00:34]}  Ne4 {[%clk 0:01:40]} 41. f3 {[%clk 0:00:33]}  Nd6 {[%clk 0:01:39]} 42. Ba2 {[%clk 0:00:32]}  Nf5 {[%clk 0:01:33]} 43. Bb3 {[%clk 0:00:29]}  Nd4 {[%clk 0:01:32]} 44. Ba4 {[%clk 0:00:28]}  b5 {[%clk 0:01:32]} 45. Bd1 {[%clk 0:00:26]}  b4 {[%clk 0:01:31]} 46. Nb7 {[%clk 0:00:22]}  Nc6 {[%clk 0:01:28]} 47. Rc8 {[%clk 0:00:15]}  Ne7 {[%clk 0:01:26]} 48. Rb8 {[%clk 0:00:14]}  Rxd1 {[%clk 0:01:25]} 49. Nd6 {[%clk 0:00:13]}  Rxd6 {[%clk 0:01:25]} 50. Rxb4 {[%clk 0:00:13]}  Nc6 {[%clk 0:01:25]} 51. Rb6 {[%clk 0:00:13]}  h5 {[%clk 0:01:25]} 52. g4 {[%clk 0:00:12]}  hxg4 {[%clk 0:01:26]} 53. hxg4 {[%clk 0:00:13]}  f6 {[%clk 0:01:26]} 54. Kg3 {[%clk 0:00:13]}  Re6 {[%clk 0:01:26]} 55. Ra6 {[%clk 0:00:13]}  Nd4 {[%clk 0:01:26]} 56. Ra1 {[%clk 0:00:13]}  Ne2+ {[%clk 0:01:26]} 57. Kf2 {[%clk 0:00:11]}  Nf4 {[%clk 0:01:26]} 58. Rh1+ {[%clk 0:00:11]}  Kg8 {[%clk 0:01:27]} 59. Ra1 {[%clk 0:00:12]}  Bf7 {[%clk 0:01:25]} 60. Ra8+ {[%clk 0:00:13]}  Kh7 {[%clk 0:01:25]} 61. Ra7 {[%clk 0:00:14]}  Be8 {[%clk 0:01:17]} 62. Kg3 {[%clk 0:00:13]}  Ne2+ {[%clk 0:01:17]} 63. Kf2 {[%clk 0:00:13]}  Nd4 {[%clk 0:01:18]} 64. Rc7 {[%clk 0:00:12]}  Re2+ {[%clk 0:01:18]} 65. Kg3 {[%clk 0:00:12]}  Re3 {[%clk 0:01:19]} 66. Rc4 {[%clk 0:00:09]}  Rxf3+ {[%clk 0:01:19]} 67. Kg2 {[%clk 0:00:10]}  Rf4 {[%clk 0:01:19]} 68. Kg3 {[%clk 0:00:10]}  Ne2+ {[%clk 0:01:20]} 69. Kg2 {[%clk 0:00:09]}  Rxc4 {[%clk 0:01:21]} 70. g5 {[%clk 0:00:10]}  fxg5 {[%clk 0:01:21]} 71. Kf2 {[%clk 0:00:10]}  Rf4+ {[%clk 0:01:22]} 72. Ke3 {[%clk 0:00:10]}  Kh6 {[%clk 0:01:23]} 73. Kxe2 {[%clk 0:00:11]}  Kh5 {[%clk 0:01:24]} 74. Ke3 {[%clk 0:00:12]}  Rf6 {[%clk 0:01:24]} 75. Ke4 {[%clk 0:00:12]}  g4 {[%clk 0:01:25]} 76. Ke5 {[%clk 0:00:13]}  g3 {[%clk 0:01:26]} 0-1


[Site "https://www.chess.com"]

[Event "Titled Tuesday Blitz February 22 Early 2022"]
[White "Demin, Vladimir"]
[Black "Kravtsiv, Martyn"]
[WhiteFideId "4167457"]
[BlackFideId "14113147"]
[WhiteElo "2572"]
[BlackElo "2694"]
[Result "1-0"]
[Round "04"]
[TimeControl "180+1"]
[Date "2022.02.22"]
[WhiteClock "0:00:04"]
[BlackClock "0:00:22"]

1. d4 {[%clk 0:03:00]}  e6 {[%clk 0:02:57]} 2. e4 {[%clk 0:03:00]}  d5 {[%clk 0:02:57]} 3. Bd3 {[%clk 0:03:00]}  dxe4 {[%clk 0:02:56]} 4. Bxe4 {[%clk 0:03:01]}  Nf6 {[%clk 0:02:56]} 5. Bf3 {[%clk 0:03:01]}  c5 {[%clk 0:02:56]} 6. Ne2 {[%clk 0:03:01]}  Be7 {[%clk 0:02:55]} 7. Be3 {[%clk 0:03:00]}  Qa5+ {[%clk 0:02:53]} 8. Nbc3 {[%clk 0:02:57]}  O-O {[%clk 0:02:51]} 9. O-O {[%clk 0:02:14]}  Rd8 {[%clk 0:02:50]} 10. Qc1 {[%clk 0:02:11]}  cxd4 {[%clk 0:02:30]} 11. Nxd4 {[%clk 0:02:11]}  e5 {[%clk 0:02:31]} 12. Nb3 {[%clk 0:02:09]}  Qa6 {[%clk 0:02:30]} 13. Rd1 {[%clk 0:01:51]}  Nc6 {[%clk 0:02:23]} 14. Be2 {[%clk 0:01:44]}  b5 {[%clk 0:02:10]} 15. a4 {[%clk 0:01:33]}  Qb7 {[%clk 0:02:04]} 16. axb5 {[%clk 0:01:31]}  Rxd1+ {[%clk 0:02:03]} 17. Qxd1 {[%clk 0:01:30]}  Nb4 {[%clk 0:02:03]} 18. Na5 {[%clk 0:01:24]}  Qc7 {[%clk 0:02:02]} 19. Bf3 {[%clk 0:01:19]}  Rb8 {[%clk 0:02:01]} 20. Nc6 {[%clk 0:01:16]}  Nxc6 {[%clk 0:02:00]} 21. Bxc6 {[%clk 0:01:17]}  a6 {[%clk 0:01:59]} 22. h3 {[%clk 0:00:47]}  h6 {[%clk 0:01:58]} 23. Qf3 {[%clk 0:00:43]}  axb5 {[%clk 0:01:38]} 24. Ra7 {[%clk 0:00:38]}  Qd8 {[%clk 0:01:33]} 25. Bxb5 {[%clk 0:00:36]}  Be6 {[%clk 0:01:30]} 26. Qc6 {[%clk 0:00:18]}  Bb4 {[%clk 0:01:23]} 27. Na4 {[%clk 0:00:15]}  Bd5 {[%clk 0:01:19]} 28. Qa6 {[%clk 0:00:08]}  Be4 {[%clk 0:00:49]} 29. Bc4 {[%clk 0:00:08]}  Bg6 {[%clk 0:00:48]} 30. c3 {[%clk 0:00:08]}  Bf8 {[%clk 0:00:48]} 31. Nc5 {[%clk 0:00:05]}  Rxb2 {[%clk 0:00:46]} 32. Ra8 {[%clk 0:00:05]}  Rb8 {[%clk 0:00:42]} 33. Rxb8 {[%clk 0:00:04]}  Qxb8 {[%clk 0:00:43]} 34. Qc6 {[%clk 0:00:03]}  Qb2 {[%clk 0:00:39]} 35. Nd7 {[%clk 0:00:02]}  Nxd7 {[%clk 0:00:39]} 36. Qxg6 {[%clk 0:00:03]}  Qxc3 {[%clk 0:00:23]} 37. Qxf7+ {[%clk 0:00:02]}  Kh7 {[%clk 0:00:22]} 38. Qg8+ {[%clk 0:00:03]}  Kg6 {[%clk 0:00:22]} 39. Qf7+ {[%clk 0:00:03]}  Kh7 {[%clk 0:00:22]} 40. Qg8+ {[%clk 0:00:04]}  Kg6 {[%clk 0:00:22]} 41. Bf7+ {[%clk 0:00:04]}  Kf6 {[%clk 0:00:22]} 42. Be8 {[%clk 0:00:04]} 1-0


[Site "https://www.chess.com"]

[Event "Titled Tuesday Blitz February 22 Early 2022"]
[White "Djokic, Mihailo"]
[Black "Topalov, Aleksandar"]
[WhiteFideId "976440"]
[BlackFideId "925659"]
[WhiteElo "2008"]
[BlackElo "2098"]
[Result "1-0"]
[Round "04"]
[TimeControl "180+1"]
[Date "2022.02.22"]
[WhiteClock "0:01:18"]
[BlackClock "0:01:06"]

1. e4 {[%clk 0:03:00]}  e6 {[%clk 0:03:00]} 2. c4 {[%clk 0:02:59]}  d5 {[%clk 0:03:00]} 3. exd5 {[%clk 0:03:00]}  exd5 {[%clk 0:03:00]} 4. d4 {[%clk 0:03:00]}  Nf6 {[%clk 0:03:00]} 5. Nc3 {[%clk 0:03:00]}  Bd6 {[%clk 0:02:55]} 6. c5 {[%clk 0:02:44]}  Be7 {[%clk 0:02:54]} 7. Nf3 {[%clk 0:02:44]}  O-O {[%clk 0:02:54]} 8. Be2 {[%clk 0:02:42]}  b6 {[%clk 0:02:54]} 9. cxb6 {[%clk 0:02:41]}  axb6 {[%clk 0:02:55]} 10. O-O {[%clk 0:02:41]}  c5 {[%clk 0:02:52]} 11. Bf4 {[%clk 0:02:40]}  Ba6 {[%clk 0:02:43]} 12. Re1 {[%clk 0:02:37]}  Bxe2 {[%clk 0:02:37]} 13. Qxe2 {[%clk 0:02:35]}  Bd6 {[%clk 0:02:37]} 14. Bg5 {[%clk 0:02:25]}  cxd4 {[%clk 0:02:04]} 15. Nxd4 {[%clk 0:01:57]}  h6 {[%clk 0:02:01]} 16. Bh4 {[%clk 0:01:48]}  g5 {[%clk 0:01:30]} 17. Bg3 {[%clk 0:01:46]}  Re8 {[%clk 0:01:30]} 18. Qf3 {[%clk 0:01:40]}  Bf8 {[%clk 0:01:30]} 19. Rxe8 {[%clk 0:01:38]}  Nxe8 {[%clk 0:01:27]} 20. Nxd5 {[%clk 0:01:34]}  Bg7 {[%clk 0:01:25]} 21. Nf5 {[%clk 0:01:28]}  Ra5 {[%clk 0:01:17]} 22. Nde7+ {[%clk 0:01:23]}  Kh8 {[%clk 0:01:10]} 23. Bxb8 {[%clk 0:01:20]}  Qxb8 {[%clk 0:01:06]} 24. Nc6 {[%clk 0:01:18]} 1-0


[Site "https://www.chess.com"]